fUST/lending_fUST_20240408
["ID","MTS","AMOUNT","RATE_DAILY","PERIOD"]
[321851531,1712565041551,-2161.02864695,0.0005,30]
[321851533,1712565041560,-565.44343863,0.0005,7]
[321851535,1712565041569,-5000.0,0.0005,30]
[321851537,1712565041578,-5000.0,0.0005,60]
[321851539,1712565041587,-5000.0,0.0005,90]
[321851541,1712565041596,-6771.84034734,0.0005,5]
[321851543,1712565041605,-3795.95687576,0.0005,120]
[321851545,1712565041617,-4364.20135183,0.0005,120]
[321851547,1712565041629,-759.05768687,0.0005,120]
[321851549,1712565041638,-500.0,0.0005,30]
[321851551,1712565041648,-200.0,0.0005,50]
[321851553,1712565041657,-236.51,0.0005,60]
[321851555,1712565041666,-2266.78043473,0.0005,120]
[321851563,1712565041996,-574.57,0.00025478,2]
[321851564,1712565042006,-500.0,0.00025478,2]
[321851565,1712565042015,-574.57,0.00025752,2]
[321851566,1712565042024,-574.57,0.00026026,2]
[321851568,1712565042034,-574.57,0.000263,2]
[321851570,1712565042043,-574.57,0.00026574,2]
[321851572,1712565042053,-280.7995703,0.00029314,2]
[321851575,1712565042065,-426.88050971,0.00029314,2]
[321851577,1712565042075,-39007.21067401,0.0005,120]
[321851579,1712565042086,-39215.93617362,0.0005,30]
[321851581,1712565042096,-307.0,0.0005,120]
[321851583,1712565042106,-7768.2592158,0.0005,120]
[321851585,1712565042117,-4406.89542656,0.0005,120]
[321851627,1712565042547,-182.94878987,0.00047689,120]
[321851629,1712565042556,-3390.16580449,0.0005,120]
[321851956,1712565043966,-500.0,0.00025752,2]
[321851958,1712565043976,-480.50202093,0.00026848,2]
[321851964,1712565044012,-94.06797907,0.00026848,2]
[321851966,1712565044021,-574.57,0.00027122,2]
[321851968,1712565044030,-574.57,0.00027396,2]
[321851969,1712565044039,-574.57,0.0002767,2]
[321851971,1712565044047,-574.57,0.00027944,2]
[321851973,1712565044056,-574.57,0.00028218,2]
[321851975,1712565044065,-574.57,0.00028492,2]
[321851977,1712565044074,-155.0,0.00040375,4]
[321851979,1712565044084,-154.9690062,0.00040375,4]
[321851981,1712565044093,-296.79092905,0.00040375,4]
[321851983,1712565044102,-2750.00494873,0.00047688,4]
[321851985,1712565044111,-156.00969868,0.00047688,4]
[321851987,1712565044120,-542.94049469,0.00047688,2]
[321851989,1712565044128,-1469.22258962,0.00047688,4]
[321851991,1712565044137,-18724.04118981,0.0005,120]
[321851993,1712565044146,-954.10944275,0.0005,60]
[321851995,1712565044157,-153.0,0.0005,2]
[321851997,1712565044166,-153.0,0.0005,2]
[321851999,1712565044175,-306.0,0.0005,2]
[321852001,1712565044184,-153.0,0.0005,2]
[321852003,1712565044194,-281.503435,0.00050469,2]
[321852005,1712565044203,-159.0,0.00050745,120]
[321852007,1712565044212,-19661.79747553,0.00051,120]
[321852009,1712565044221,-400.0,0.00052,120]
[321852011,1712565044231,-200.32086662,0.00052859,20]
[321852013,1712565044241,-1337.33214061,0.0005346,77]
[321852015,1712565044250,-667.0,0.00054,120]
[321852017,1712565044259,-961.01577065,0.00054,120]
[321852018,1712565044268,-4572.15470307,0.00054,120]
[321852019,1712565044277,-2182.22595838,0.000545,120]
[321852020,1712565044286,-151.0,0.00054794,7]
[321852021,1712565044298,-500.0,0.00054794,120]
[321852022,1712565044308,-500.0,0.00054794,120]
[321852023,1712565044317,-500.0,0.00054794,120]
[321852024,1712565044326,-500.0,0.00054794,120]
[321852025,1712565044335,-500.0,0.00054794,120]
[321852026,1712565044344,-500.0,0.00054794,120]
[321852027,1712565044353,-500.0,0.00054794,120]
[321852028,1712565044363,-500.0,0.00054794,120]
[321852029,1712565044372,-500.0,0.00054794,120]
[321852030,1712565044381,-500.0,0.00054794,120]
[321852031,1712565044390,-500.0,0.00054794,120]
[321852032,1712565044401,-500.0,0.00054794,120]
[321852033,1712565044410,-500.0,0.00054794,120]
[321852034,1712565044419,-500.0,0.00054794,120]
[321852036,1712565044427,-500.0,0.00054794,120]
[321852038,1712565044436,-500.0,0.00054794,120]
[321852040,1712565044446,-500.0,0.00054794,120]
[321852042,1712565044455,-500.0,0.00054794,120]
[321852044,1712565044464,-500.0,0.00054794,120]
[321852046,1712565044473,-500.0,0.00054794,120]
[321852048,1712565044482,-500.0,0.00054794,120]
[321852050,1712565044492,-215.40494102,0.00054794,120]
[321852052,1712565044502,-189.47600034,0.00054794,120]
[321852054,1712565044511,-500.0,0.00054794,2]
[321852064,1712565044594,-500.0,0.00054794,2]
[321852066,1712565044603,-500.0,0.00054794,2]
[321852068,1712565044613,-500.0,0.00054794,2]
[321852070,1712565044622,-500.0,0.00054794,2]
[321852072,1712565044631,-500.0,0.00054794,2]
[321852074,1712565044640,-500.0,0.00054794,2]
[321852076,1712565044650,-500.0,0.00054794,2]
[321852078,1712565044661,-500.0,0.00054794,2]
[321852080,1712565044671,-500.0,0.00054794,2]
[321852082,1712565044681,-500.0,0.00054794,2]
[321852083,1712565044691,-500.0,0.00054794,2]
[321852085,1712565044700,-500.0,0.00054794,2]
[321852086,1712565044708,-500.0,0.00054794,2]
[321852087,1712565044717,-500.0,0.00054794,2]
[321852088,1712565044726,-500.0,0.00054794,2]
[321852089,1712565044735,-644.43547606,0.00054794,2]
[321852091,1712565044744,-500.0,0.00054794,120]
[321852092,1712565044753,-500.0,0.00054794,120]
[321852093,1712565044762,-500.0,0.00054794,120]
[321852094,1712565044771,-500.0,0.00054794,120]
[321852096,1712565044781,-500.0,0.00054794,120]
[321852097,1712565044790,-500.0,0.00054794,120]
[321852098,1712565044800,-500.0,0.00054794,120]
[321852099,1712565044809,-500.0,0.00054794,120]
[321852100,1712565044820,-500.0,0.00054794,120]
[321852101,1712565044829,-500.0,0.00054794,120]
[321852102,1712565044838,-500.0,0.00054794,120]
[321852103,1712565044848,-500.0,0.00054794,120]
[321852104,1712565044857,-500.0,0.00054794,120]
[321852105,1712565044866,-500.0,0.00054794,120]
[321852106,1712565044876,-500.0,0.00054794,120]
[321852107,1712565044886,-500.0,0.00054794,120]
[321852108,1712565044896,-500.0,0.00054794,120]
[321852109,1712565044912,-500.0,0.00054794,120]
[321852110,1712565044921,-500.0,0.00054794,120]
[321852111,1712565044932,-500.0,0.00054794,120]
[321852112,1712565044944,-614.28975377,0.00054794,120]
[321852113,1712565044953,-1018.685,0.00054794,120]
[321852114,1712565044962,-248.88039534,0.00054795,120]
[321852115,1712565044972,-248.88039534,0.00054795,120]
[321852116,1712565044982,-248.88039534,0.00054795,120]
[321852117,1712565044993,-248.88039534,0.00054795,120]
[321852118,1712565045002,-248.88039534,0.00054795,120]
[321852119,1712565045013,-248.88039534,0.00054795,120]
[321852120,1712565045022,-248.88039534,0.00054795,120]
[321852121,1712565045035,-248.88039534,0.00054795,120]
[321852122,1712565045045,-248.88039534,0.00054795,120]
[321852123,1712565045054,-248.88039534,0.00054795,120]
[321852124,1712565045063,-248.88039534,0.00054795,120]
[321852125,1712565045072,-248.88039534,0.00054795,120]
[321852126,1712565045081,-248.88039534,0.00054795,120]
[321852127,1712565045091,-248.88039534,0.00054795,120]
[321852128,1712565045101,-248.88039534,0.00054795,120]
[321852129,1712565045110,-248.88039534,0.00054795,120]
[321852130,1712565045119,-248.88039534,0.00054795,120]
[321852131,1712565045128,-248.88039534,0.00054795,120]
[321852132,1712565045137,-248.88039534,0.00054795,120]
[321852133,1712565045146,-249.38,0.00054795,120]
[321852135,1712565045159,-197.23843841,0.00054795,120]
[321852137,1712565045168,-197.23843841,0.00054795,120]
[321852138,1712565045177,-197.23843841,0.00054795,120]
[321852139,1712565045187,-197.23843841,0.00054795,120]
[321852140,1712565045197,-197.23843841,0.00054795,120]
[321852141,1712565045206,-197.23843841,0.00054795,120]
[321852143,1712565045216,-197.23843841,0.00054795,120]
[321852144,1712565045225,-197.23843841,0.00054795,120]
[321852146,1712565045234,-197.23843841,0.00054795,120]
[321852147,1712565045243,-197.23843841,0.00054795,120]
[321852148,1712565045253,-197.23843841,0.00054795,120]
[321852149,1712565045262,-197.23843841,0.00054795,120]
[321852151,1712565045271,-197.23843841,0.00054795,120]
[321852152,1712565045280,-197.23843841,0.00054795,120]
[321852153,1712565045289,-197.23843841,0.00054795,120]
[321852154,1712565045298,-197.23843841,0.00054795,120]
[321852155,1712565045307,-197.23843841,0.00054795,120]
[321852156,1712565045316,-197.23843841,0.00054795,120]
[321852158,1712565045325,-197.23843841,0.00054795,120]
[321852159,1712565045335,-197.73,0.00054795,120]
[321852161,1712565045344,-1078.70866027,0.00054795,120]
[321852163,1712565045353,-1078.70866027,0.00054795,120]
[321852165,1712565045364,-1078.70866027,0.00054795,120]
[321852167,1712565045373,-1078.70866027,0.00054795,120]
[321852169,1712565045382,-1078.70866027,0.00054795,120]
[321852171,1712565045391,-1078.70866027,0.00054795,120]
[321852173,1712565045402,-1078.70866027,0.00054795,120]
[321852175,1712565045412,-1078.70866027,0.00054795,120]
[321852176,1712565045421,-1078.70866027,0.00054795,120]
[321852178,1712565045431,-1078.70866027,0.00054795,120]
[321852180,1712565045441,-1078.70866027,0.00054795,120]
[321852181,1712565045450,-1078.70866027,0.00054795,120]
[321852182,1712565045459,-1078.70866027,0.00054795,120]
[321852183,1712565045468,-1078.70866027,0.00054795,120]
[321852184,1712565045478,-1078.70866027,0.00054795,120]
[321852186,1712565045487,-1078.70866027,0.00054795,120]
[321852187,1712565045496,-1078.70866027,0.00054795,120]
[321852188,1712565045505,-1078.70866027,0.00054795,120]
[321852190,1712565045514,-1078.70866027,0.00054795,120]
[321852191,1712565045523,-1079.2,0.00054795,120]
[321852192,1712565045533,-164.619341,0.00054795,2]
[321852194,1712565045542,-29101.66,0.000549,120]
[321852195,1712565045551,-200.0,0.00054987,2]
[321852196,1712565045560,-10020.69540069,0.00055,2]
[321852197,1712565045570,-160.0,0.00055,50]
[321852199,1712565045582,-499.989,0.00055068,120]
[321852200,1712565045592,-499.989,0.00055068,120]
[321852201,1712565045601,-2037.37,0.00055068,120]
[321852202,1712565045610,-3056.055,0.00055342,120]
[321852203,1712565045619,-688.462253,0.00055479,120]
[321852204,1712565045629,-4074.74,0.00055616,120]
[321852205,1712565045638,-153.0,0.00055671,60]
[321852206,1712565045647,-5093.425,0.0005589,120]
[321852207,1712565045659,-200.0,0.00055987,2]
[321852208,1712565045668,-6112.11,0.00056164,120]
[321852209,1712565045677,-281.503435,0.00056236,2]
[321852210,1712565045685,-7130.795,0.00056438,120]
[321852211,1712565045694,-153.0,0.00056493,60]
[321852213,1712565045704,-153.0,0.00056493,60]
[321852215,1712565045713,-8149.48,0.00056712,120]
[321852218,1712565045722,-9168.165,0.00056986,120]
[321852220,1712565045731,-200.0,0.00056987,2]
[321852222,1712565045741,-1759.07116047,0.00057,120]
[321852223,1712565045750,-10186.85,0.0005726,120]
[321852225,1712565045759,-11205.535,0.00057534,120]
[321852228,1712565045769,-12224.22,0.00057808,120]
[321852231,1712565045777,-200.0,0.00057987,2]
[321852234,1712565045786,-600.0,0.00058,120]
[321852237,1712565045796,-13242.905,0.00058082,120]
[321852239,1712565045805,-5093.5835164,0.00058356,120]
[321852241,1712565045814,-1007.57736416,0.000587,60]
[321852243,1712565045823,-200.0,0.00058987,2]
[321852245,1712565045831,-200.0,0.00059987,2]
[321852247,1712565045840,-2007.27203074,0.0006,30]
[321852249,1712565045849,-671.06201612,0.0006,12]
[321852250,1712565045858,-352.0,0.0006,120]
[321852251,1712565045868,-222.73672101,0.0006,7]
[321852252,1712565045882,-155.0,0.0006,50]
[321852253,1712565045891,-200.0,0.00060987,3]
[321852255,1712565045901,-150.0,0.00061,120]
[321852257,1712565045910,-344.72654856,0.000616,120]
[321852259,1712565045919,-200.0,0.00061987,2]
[321852261,1712565045928,-200.0,0.00061987,3]
[321852263,1712565045937,-240.0,0.00062,120]
[321852265,1712565045947,-281.503435,0.00062004,2]
[321852266,1712565045957,-200.0,0.00062987,4]
[321852268,1712565045966,-200.0,0.00062987,3]
[321852270,1712565045975,-200.0,0.00062987,2]
[321852272,1712565045984,-171.462467,0.00063927,2]
[321852274,1712565045993,-200.0,0.00063987,3]
[321852276,1712565046001,-200.0,0.00063987,4]
[321852278,1712565046010,-200.0,0.00063987,2]
[321852280,1712565046019,-600.0,0.00064,120]
[321852282,1712565046028,-200.0,0.00064984,2]
[321852284,1712565046036,-500.0,0.00065753,120]
[321852286,1712565046045,-200.0,0.00065987,2]
[321852287,1712565046054,-200.0,0.00066,120]
[321852288,1712565046063,-5785.75007573,0.000669,120]
[321852289,1712565046072,-200.0,0.00066987,3]
[321852291,1712565046081,-2000.0,0.00067031,120]
[321852293,1712565046090,-150.89437394,0.00067723,2]
[321852294,1712565046100,-281.503435,0.00067772,2]
[321852297,1712565046110,-200.0,0.00067987,3]
[321852299,1712565046119,-890.013,0.00068,110]
[321852300,1712565046128,-200.0,0.00068987,4]
[321852302,1712565046137,-260.12019178,0.00069,7]
[321852304,1712565046146,-528.35570469,0.00069,120]
[321852306,1712565046157,-45760.3451279,0.00069,30]
[321852308,1712565046166,-200.0,0.00069987,4]
[321852310,1712565046175,-200.0,0.0007,120]
[321852312,1712565046184,-150.0,0.0007,120]
[321852314,1712565046193,-73786.564309,0.0007,120]
[321852316,1712565046202,-151.0,0.0007,120]
[321852318,1712565046211,-4887.09798771,0.0007,120]
[321852321,1712565046221,-151.0,0.0007,30]
[321852323,1712565046230,-151.888671,0.0007,30]
[321852325,1712565046240,-1000.0,0.00070987,3]
[321852326,1712565046250,-1000.0,0.00071987,3]
[321852329,1712565046260,-2500.0,0.00072,120]
[321852330,1712565046269,-3264.54905183,0.00072,120]
[321852332,1712565046279,-900.98,0.00072,90]
[321852334,1712565046288,-2000.0,0.0007245,120]
[321852336,1712565046297,-1000.0,0.00072987,2]
[321852338,1712565046306,-1050.21108988,0.00073,120]
[321852340,1712565046315,-281.503435,0.0007354,120]
[321852342,1712565046324,-1000.0,0.00073987,3]
[321852344,1712565046333,-2218.86471373,0.00074,120]
[321852346,1712565046343,-267.97634,0.000741,120]
[321852348,1712565046352,-1000.0,0.00074987,5]
[321852351,1712565046361,-1050.0,0.00075,120]
[321852353,1712565046371,-277.0,0.0007597,35]
[321852355,1712565046381,-277.0,0.0007598,35]
[321852357,1712565046390,-277.0,0.0007599,35]
[321852359,1712565046400,-1050.0,0.00076,120]
[321852360,1712565046410,-1050.0,0.00076,120]
[321852362,1712565046418,-1563.9611993,0.00076,2]
[321852364,1712565046427,-1050.0,0.00077,120]
[321852366,1712565046436,-1297.03481039,0.00077989,93]
[321852368,1712565046448,-1050.0,0.00078,120]
[321852378,1712565046459,-280000.0,0.0007869,120]
[321852380,1712565046536,-499.989,0.0007869,120]
[321852382,1712565046545,-499.989,0.0007869,120]
[321852384,1712565046554,-151.0,0.0007869,10]
[321852386,1712565046563,-151.0,0.0007869,10]
[321852388,1712565046572,-325821.18168078,0.00079,120]
[321852390,1712565046586,-381.53574793,0.00079,120]
[321852392,1712565046597,-288.59474655,0.00079,120]
[321852489,1712565047984,-574.57,0.00028766,2]
[321852492,1712565047993,-574.57,0.0002904,2]
[321852495,1712565048002,-574.57,0.00029314,2]
[321852498,1712565048012,-574.57,0.00029588,2]
[321852501,1712565048021,-574.57,0.00029862,2]
[321852504,1712565048036,-687.4,0.00030134,4]
[321852506,1712565048051,-4236.44324824,0.00030134,4]
[321852508,1712565048059,-574.57,0.00030136,2]
[321852510,1712565048068,-574.57,0.0003041,2]
[321852513,1712565048078,-574.57,0.00030684,2]
[321852516,1712565048088,-574.57,0.00030958,2]
[321852519,1712565048097,-574.57,0.00031232,2]
[321852522,1712565048106,-574.57,0.00031506,2]
[321852525,1712565048116,-574.63956097,0.0003178,2]
[321852529,1712565048125,-1240.42355071,0.00036398,4]
[321852531,1712565048134,-2120.63245232,0.00040375,4]
[321852533,1712565048143,-1287.29576434,0.00040375,4]
[321852537,1712565048154,-332.6291542,0.00044959,2]
[321852540,1712565048164,-155.1811457,0.00047588,4]
[321852542,1712565048173,-188.00205176,0.00047588,4]
[321852545,1712565048183,-166.84517677,0.00047588,4]
[321852548,1712565048193,-486.34921375,0.00047588,4]
[321852551,1712565048203,-217.6541472,0.00047589,2]
[321852555,1712565048213,-217.65414717,0.00047589,2]
[321852558,1712565048223,-7833.17346875,0.00047687,4]
[321852559,1712565048232,-4611.6682923,0.00047687,4]
[321852561,1712565048241,-171.809124,0.00047688,4]
[321852564,1712565048251,-290.23277151,0.00047688,4]
[321852566,1712565048260,-473.12701109,0.00047688,4]
[321852567,1712565048270,-192.34526529,0.00047688,4]
[321852570,1712565048279,-464.50545485,0.00047688,4]
[321852571,1712565048289,-1140.11063756,0.00047688,4]
[321852573,1712565048298,-407.36237931,0.00047688,4]
[321852576,1712565048308,-681.097511,0.00047688,2]
[321852579,1712565048318,-306.0,0.0005,2]
[321852582,1712565048327,-153.0,0.0005,2]
[321852585,1712565048336,-153.0,0.0005,2]
[321852588,1712565048345,-153.0,0.0005,2]
[321852591,1712565048355,-153.0,0.0005,2]
[321852594,1712565048363,-153.0,0.0005,2]
[321852597,1712565048372,-153.0,0.0005,2]
[321852600,1712565048381,-153.0,0.0005,2]
[321852603,1712565048390,-153.0,0.0005,2]
[321852606,1712565048400,-153.0,0.0005,2]
[321852609,1712565048411,-191.225278,0.0005,2]
[321852612,1712565048421,-117316.53044605,0.00079,120]
[321852615,1712565048433,-19890.52547,0.00079,120]
[321852642,1712565048659,-159.41717954,0.00038356,4]
[321852643,1712565048669,-284.71790356,0.00039567,4]
[321852644,1712565048679,-3717.29210644,0.00047588,4]
[321852645,1712565048688,-335618.24417046,0.00079,120]
[321853256,1712565376164,-688.99595907,0.00023452,2]
[321853257,1712565376190,-1131.68428374,0.00023452,2]
[321853258,1712565376215,-161.55797126,0.00023452,2]
[321853259,1712565376242,-271.8195425,0.00023453,2]
[321853260,1712565376267,-207.18381603,0.00023454,2]
[321853261,1712565376301,-205.65384658,0.00023454,2]
[321853262,1712565376331,-154.90705577,0.00023454,2]
[321853263,1712565376370,-868.32225078,0.00023454,2]
[321853264,1712565376404,-154.90705577,0.00023454,2]
[321853265,1712565376438,-5781.60876067,0.00023454,2]
[321853266,1712565376468,-242.6744587,0.00023455,2]
[321853267,1712565376504,-1930.22588294,0.00023455,2]
[321853268,1712565376537,-1865.50634258,0.00023455,2]
[321853269,1712565376570,-886.58989039,0.00023456,2]
[321853270,1712565376602,-188.58893471,0.00023456,2]
[321853271,1712565376632,-469.89408815,0.00023457,2]
[321853272,1712565376660,-154.90705577,0.00023458,2]
[321853273,1712565376691,-300.0,0.00023458,2]
[321853274,1712565376724,-300.0,0.00023458,2]
[321853275,1712565376753,-2615.47741153,0.00023459,2]
[321853276,1712565376784,-47586.56218939,0.00023459,2]
[321853277,1712565376813,-1616.75713304,0.0002346,2]
[321853278,1712565376839,-155.01085076,0.0002347,2]
[321853279,1712565376870,-169.069656,0.00023471,2]
[321853280,1712565376901,-500.0,0.00024647,2]
[321853281,1712565376932,-500.0,0.00024647,2]
[321853282,1712565376964,-500.0,0.00024647,2]
[321853283,1712565376998,-500.0,0.00024647,2]
[321853284,1712565377029,-500.0,0.00024647,2]
[321853285,1712565377059,-290.0,0.00024647,2]
[321853286,1712565377090,-500.0,0.00024647,2]
[321853287,1712565377122,-2127.0,0.00024649,2]
[321853288,1712565377155,-7206.68817921,0.00024651,2]
[321853289,1712565377184,-164.81904154,0.00024657,2]
[321853290,1712565377212,-500.0,0.00024657,2]
[321853291,1712565377240,-500.0,0.00024657,2]
[321853292,1712565377268,-522.14853697,0.00024657,2]
[321853293,1712565377297,-500.0,0.00024657,2]
[321853294,1712565377327,-500.0,0.00024657,2]
[321853295,1712565377354,-500.0,0.00024657,2]
[321853296,1712565377384,-500.0,0.00024657,2]
[321853297,1712565377414,-500.0,0.00024657,2]
[321853298,1712565377441,-502.62062407,0.00024657,2]
[321853299,1712565377471,-503.36198932,0.00024657,2]
[321853300,1712565377637,-500.0,0.00024657,2]
[321853301,1712565377665,-520.97822673,0.00024657,2]
[321853302,1712565377692,-500.0,0.00024657,2]
[321853303,1712565377723,-500.0,0.00024657,2]
[321853304,1712565377751,-314.26656133,0.00024657,2]
[321853305,1712565377777,-215.46917683,0.00024657,2]
[321853306,1712565377802,-156.44918915,0.00024928,2]
[321853307,1712565377827,-283.84797041,0.00024928,2]
[321853308,1712565377853,-232.95017337,0.00024928,2]
[321853309,1712565377880,-472.86433068,0.00024928,2]
[321853310,1712565377907,-392.05336155,0.00024928,2]
[321853311,1712565377935,-349.3921746,0.00024928,2]
[321853312,1712565377978,-550.98498562,0.00024928,2]
[321853313,1712565378012,-438.82330198,0.00024928,2]
[321853314,1712565378037,-228.06456745,0.00024929,2]
[321853315,1712565378063,-1981.03019826,0.00024929,2]
[321853316,1712565378089,-381.86204224,0.00024931,2]
[321853317,1712565378115,-500.0,0.00024931,2]
[321853318,1712565378141,-523.92757053,0.00024931,2]
[321853319,1712565378167,-508.76922421,0.00024931,2]
[321853320,1712565378192,-314.67787442,0.00024931,2]
[321853321,1712565378218,-500.0,0.00024931,2]
[321853322,1712565378248,-500.0,0.00024931,2]
[321853323,1712565378274,-500.0,0.00024931,2]
[321853324,1712565378300,-500.0,0.00024931,2]
[321853325,1712565378325,-533.3265111,0.00024931,2]
[321853326,1712565378351,-500.0,0.00025205,2]
[321853327,1712565378378,-507.89057725,0.00025205,2]
[321853328,1712565378404,-518.53295723,0.00025205,2]
[321853329,1712565378434,-500.0,0.00025205,2]
[321853330,1712565378461,-500.0,0.00025205,2]
[321853331,1712565378491,-420.0,0.00025453,2]
[321853332,1712565378516,-155.18400495,0.00025476,2]
[321853333,1712565378544,-500.0,0.00025478,2]
[321853334,1712565378570,-251.18382323,0.00025478,2]
[321853335,1712565378595,-500.0,0.00025478,2]
[321853336,1712565378621,-602.86122293,0.00025478,2]
[321853337,1712565378646,-500.0,0.00025478,2]
[321853338,1712565378672,-500.0,0.00025478,2]
[321853339,1712565378699,-500.0,0.00025478,2]
[321853340,1712565378729,-500.0,0.00025478,2]
[321853341,1712565378757,-500.0,0.00025478,2]
[321853342,1712565378785,-500.0,0.00025478,2]
[321853343,1712565378814,-1138.26,0.00025478,2]
[321853344,1712565378848,-500.0,0.00025478,2]
[321853345,1712565378875,-500.0,0.00025478,2]
[321853346,1712565378901,-500.0,0.00025478,2]
[321853347,1712565378927,-500.0,0.00025478,2]
[321853348,1712565378955,-500.0,0.00025478,2]
[321853349,1712565378983,-500.0,0.00025478,2]
[321853350,1712565379008,-500.0,0.00025478,2]
[321853351,1712565379035,-500.0,0.00025478,2]
[321853352,1712565379065,-500.0,0.00025478,2]
[321853353,1712565379091,-514.7428645,0.00025478,2]
[321853354,1712565379209,-765.56,0.00025478,2]
[321853355,1712565379238,-602.181279,0.00025478,2]
[321853356,1712565379264,-500.0,0.00025479,2]
[321853357,1712565379289,-500.0,0.00025479,2]
[321853358,1712565379314,-500.0,0.00025479,2]
[321853359,1712565379340,-500.0,0.00025752,2]
[321853360,1712565379366,-500.0,0.00025752,2]
[321853361,1712565379392,-500.0,0.00025752,2]
[321853362,1712565379417,-517.419908,0.00025752,2]
[321853363,1712565379445,-500.0,0.00025752,2]
[321853364,1712565379473,-500.0,0.00025752,2]
[321853365,1712565379501,-500.0,0.00025752,2]
[321853366,1712565379528,-500.0,0.00025752,2]
[321853367,1712565379553,-1138.26,0.00025752,2]
[321853368,1712565379579,-500.0,0.00025752,2]
[321853369,1712565379604,-500.0,0.00025752,2]
[321853370,1712565379629,-505.54421034,0.00025752,2]
[321853371,1712565379656,-645.6,0.00025752,2]
[321853372,1712565379682,-500.0,0.00025752,2]
[321853373,1712565379707,-500.0,0.00025752,2]
[321853374,1712565379735,-500.0,0.00025752,2]
[321853375,1712565379760,-500.0,0.00025752,2]
[321853376,1712565379786,-500.0,0.00025752,2]
[321853377,1712565379811,-765.56,0.00025752,2]
[321853378,1712565379837,-500.0,0.00025753,2]
[321853379,1712565379862,-500.0,0.00025753,2]
[321853380,1712565379886,-500.0,0.00025753,2]
[321853381,1712565379911,-420.0,0.00025804,2]
[321853382,1712565379937,-500.0,0.00026026,2]
[321853383,1712565379962,-647.32,0.00026026,2]
[321853384,1712565379991,-500.0,0.00026026,2]
[321853385,1712565380018,-1138.26,0.00026026,2]
[321853386,1712565380045,-500.0,0.00026026,2]
[321853387,1712565380071,-500.0,0.00026026,2]
[321853388,1712565380096,-500.0,0.00026026,2]
[321853389,1712565380121,-500.0,0.00026026,2]
[321853390,1712565380147,-167.4,0.00026026,2]
[321853391,1712565380174,-765.56,0.00026026,2]
[321853392,1712565380204,-103752.03699747,0.00026027,3]
[321853393,1712565380234,-192.94232533,0.00026027,2]
[321853394,1712565380261,-500.0,0.00026027,2]
[321853395,1712565380288,-500.0,0.00026027,2]
[321853396,1712565380316,-500.0,0.000263,2]
[321853397,1712565380343,-500.0,0.000263,2]
[321853398,1712565380371,-1138.26,0.000263,2]
[321853399,1712565380397,-500.0,0.000263,2]
[321853400,1712565380422,-500.0,0.000263,2]
[321853401,1712565380447,-500.0,0.000263,2]
[321853402,1712565380478,-765.56,0.000263,2]
[321853403,1712565380502,-500.0,0.00026301,2]
[321853404,1712565380527,-500.0,0.00026301,2]
[321853405,1712565380554,-500.0,0.00026574,2]
[321853406,1712565380580,-500.0,0.00026574,2]
[321853407,1712565380606,-1138.26,0.00026574,2]
[321853408,1712565380633,-500.0,0.00026574,2]
[321853409,1712565380659,-500.0,0.00026574,2]
[321853410,1712565380685,-500.0,0.00026574,2]
[321853411,1712565380712,-765.56,0.00026574,2]
[321853412,1712565380739,-500.0,0.00026575,2]
[321853413,1712565380765,-500.0,0.00026575,2]
[321853414,1712565380792,-500.0,0.00026848,2]